bitfinex-derivatives/quotes_SOLF0:USTF0_20260315
["timestamp","ask_amount","ask_price","bid_price","bid_amount"]
[1773615790246,74.17507952,92.747,92.673,108.92333516]
[1773615791140,74.17507952,92.747,92.696,9.42303383]
[1773615791341,83.86207952,92.818,92.68,73.22643763]
[1773615791646,83.86207952,92.818,92.691,65.25333516]
[1773615791647,64.47307952,92.799,92.691,65.25333516]
[1773615791840,7.97310247,92.8,92.673,33.96]
[1773615791841,64.47307952,92.779,92.674,65.25333516]
[1773615792242,64.47307952,92.779,92.691,9.42303383]
[1773615792554,64.47307952,92.779,92.676,65.25333516]
[1773615792843,9.7,92.766,92.698,9.707]
[1773615793149,64.47307952,92.779,92.691,65.25333516]
[1773615793448,64.47307952,92.777,92.708,9.706]
[1773615793650,64.47307952,92.777,92.691,65.25333516]
[1773615793842,64.47307952,92.777,92.671,65.25333516]
[1773615794043,64.47307952,92.755,92.673,65.25333516]
[1773615794446,64.47307952,92.755,92.694,9.42303383]
[1773615794647,64.47307952,92.755,92.673,65.25333516]
[1773615794843,64.47307952,92.776,92.693,65.25333516]
[1773615795448,74.17207952,92.774,92.701,9.707]
[1773615795749,64.47307952,92.774,92.701,9.707]
[1773615795951,74.17207952,92.775,92.714,9.705]
[1773615796151,64.47307952,92.775,92.702,65.25333516]
[1773615796349,64.47307952,92.775,92.69,7.97310247]
[1773615796350,64.47307952,92.769,92.706,33.96]
[1773615796650,64.47307952,92.769,92.686,9.708]
[1773615797545,9.701,92.756,92.686,9.708]
[1773615798150,9.701,92.756,92.686,74.96133516]
[1773615798348,9.701,92.756,92.712,9.42303383]
[1773615798546,9.701,92.756,92.686,74.96133516]
[1773615798547,9.701,92.756,92.699,9.707]
[1773615798846,10.78,92.817,92.699,9.707]
[1773615798847,64.47307952,92.816,92.699,65.25333516]
[1773615799041,10.78,92.844,92.699,65.25333516]
[1773615799042,64.47307952,92.788,92.699,65.25333516]
[1773615799445,64.47307952,92.788,92.709,9.706]
[1773615800052,9.699,92.779,92.718,9.705]
[1773615800751,9.699,92.771,92.718,9.705]
[1773615801046,9.699,92.771,92.71,65.25333516]
[1773615801250,64.47307952,92.738,92.677,33.96]
[1773615801450,64.47307952,92.738,92.663,65.25333516]
[1773615801945,9.703,92.737,92.683,9.709]
[1773615802250,9.703,92.737,92.663,65.25333516]
[1773615802847,64.47307952,92.738,92.683,9.709]
[1773615803554,64.47307952,92.738,92.674,9.709]
[1773615804145,64.47307952,92.738,92.664,9.71]
[1773615804354,64.47307952,92.738,92.652,33.96]
[1773615804554,64.47307952,92.738,92.651,33.96]
[1773615804855,62.75162049,92.76,92.671,64.3698076]
[1773615805255,9.702,92.749,92.694,9.707]
[1773615805457,9.702,92.749,92.69,33.96]
[1773615805955,9.702,92.749,92.691,9.708]
[1773615806156,62.75162049,92.76,92.652,33.96]
[1773615806157,62.75162049,92.739,92.652,33.96]
[1773615806359,62.75162049,92.739,92.653,64.3698076]
[1773615807553,9.704,92.725,92.653,64.3698076]
[1773615807958,9.704,92.723,92.655,9.711]
[1773615808156,33.96,92.733,92.655,64.3698076]
[1773615808352,62.75162049,92.732,92.655,64.3698076]
[1773615808858,62.75162049,92.732,92.654,33.96]
[1773615808859,9.707,92.703,92.654,33.96]
[1773615809061,72.45862049,92.703,92.654,33.96]
[1773615809358,62.75162049,92.703,92.634,64.3698076]
[1773615810251,62.75162049,92.689,92.624,9.715]
[1773615810457,62.75162049,92.689,92.609,64.3698076]
[1773615810751,33.96,92.729,92.621,64.3698076]
[1773615810752,62.75162049,92.71,92.621,64.3698076]
[1773615810955,9.706,92.701,92.642,9.712]
[1773615811155,62.75162049,92.71,92.643,33.96]
[1773615811658,62.75162049,92.735,92.644,64.3698076]
[1773615811859,62.75162049,92.735,92.661,64.3698076]
[1773615812058,62.75162049,92.735,92.643,33.96]
[1773615812255,9.706,92.703,92.643,43.672]
[1773615812658,62.75162049,92.691,92.632,33.96]
[1773615812857,62.75162049,92.691,92.621,33.96]
[1773615813460,62.75162049,92.691,92.616,64.3698076]
[1773615813955,33.96,92.699,92.59,64.3698076]
[1773615813956,62.75162049,92.679,92.59,64.3698076]
[1773615814154,62.75162049,92.677,92.59,64.3698076]
[1773615814555,9.711,92.655,92.592,64.3698076]
[1773615814756,62.75162049,92.677,92.592,64.3698076]
[1773615814952,62.75162049,92.677,92.601,64.3698076]
[1773615815152,9.709,92.666,92.607,9.715]
[1773615815351,62.75162049,92.75,92.62,7.97310247]
[1773615815554,62.75162049,92.739,92.621,64.3698076]
[1773615815763,9.704,92.717,92.648,9.711]
[1773615815958,9.704,92.717,92.648,43.671]
[1773615816862,9.704,92.717,92.657,9.71]
[1773615817260,62.75162049,92.737,92.649,64.3698076]
[1773615818363,62.75162049,92.737,92.661,64.3698076]
[1773615818560,9.702,92.733,92.673,9.709]
[1773615818761,9.702,92.733,92.661,64.3698076]
[1773615818762,62.75162049,92.758,92.661,64.3698076]
[1773615819060,62.75162049,92.758,92.648,33.96]
[1773615819061,62.75162049,92.758,92.671,64.3698076]
[1773615819267,9.7,92.754,92.689,74.0768076]
[1773615819466,9.7,92.754,92.69,33.98]
[1773615819663,9.7,92.754,92.695,9.706]
[1773615819862,7.97310247,92.78,92.69,33.98]
[1773615820068,62.75162049,92.779,92.69,33.98]
[1773615820267,7.97310247,92.78,92.674,64.3698076]
[1773615820268,9.702,92.736,92.674,64.3698076]
[1773615820467,62.75162049,92.746,92.65,7.97310247]
[1773615820468,62.75162049,92.746,92.676,64.3698076]
[1773615820664,62.75162049,92.779,92.678,64.3698076]
[1773615820864,62.75162049,92.779,92.68,64.3698076]
[1773615821270,9.699,92.767,92.692,9.707]
[1773615821671,9.699,92.767,92.692,74.0768076]
[1773615822171,62.75162049,92.779,92.705,64.3698076]
[1773615822172,9.698,92.778,92.705,64.3698076]
[1773615822566,9.698,92.778,92.709,74.0748076]
[1773615822769,9.698,92.778,92.71,7.97310247]
[1773615822972,9.698,92.778,92.711,33.98]
[1773615823165,9.698,92.778,92.711,98.3498076]
[1773615823565,9.698,92.778,92.715,9.704]
[1773615823771,62.75162049,92.768,92.711,33.98]
[1773615823967,62.75162049,92.799,92.712,64.3698076]
[1773615824273,62.75162049,92.799,92.712,74.0738076]
[1773615825074,9.696,92.791,92.725,9.703]
[1773615825767,9.696,92.791,92.712,64.3698076]
[1773615825768,62.75162049,92.78,92.712,64.3698076]
[1773615826565,9.698,92.771,92.712,64.3698076]
[1773615826971,9.698,92.771,92.705,33.96]
[1773615826972,62.75162049,92.77,92.705,33.96]
[1773615827674,62.75162049,92.77,92.691,64.3698076]
[1773615827875,9.699,92.768,92.698,64.3698076]
[1773615829478,72.45162049,92.758,92.686,9.707]
[1773615829679,72.45162049,92.758,92.687,33.96]
[1773615829876,72.45162049,92.758,92.688,64.3698076]
[1773615830081,33.96,92.783,92.687,33.96]
[1773615830082,62.75162049,92.781,92.687,33.96]
[1773615830380,62.75162049,92.781,92.688,64.3698076]
[1773615831582,9.699,92.768,92.702,9.706]
[1773615831782,9.699,92.768,92.688,64.3698076]
[1773615831783,62.75162049,92.768,92.688,64.3698076]
[1773615832082,62.75162049,92.768,92.703,9.705]
[1773615832273,62.75162049,92.768,92.703,75.23747671]
[1773615833073,68.48778663,92.766,92.692,9.707]
[1773615833279,68.48778663,92.766,92.692,77.57929253]
[1773615833785,68.48778663,92.783,92.696,67.87229253]
[1773615833983,68.48778663,92.783,92.698,67.87229253]
[1773615834182,9.696,92.799,92.737,9.702]
[1773615834375,9.696,92.799,92.73,75.845395]
[1773615834574,9.696,92.799,92.659,24.75767294]
[1773615834575,68.48778663,92.809,92.725,33.96]
[1773615834782,68.48778663,92.809,92.726,67.87229253]
[1773615835084,68.48778663,92.809,92.74,7.97310247]
[1773615835293,19.95205442,92.899,92.725,33.96]
[1773615835294,68.48778663,92.805,92.725,33.96]
[1773615835488,68.48778663,92.805,92.717,67.87229253]
[1773615835489,68.48778663,92.805,92.726,33.96]
[1773615835790,68.48778663,92.805,92.726,101.83229253]
[1773615836087,68.48778663,92.805,92.744,67.87229253]
[1773615836990,68.48778663,92.805,92.702,67.87229253]
[1773615837190,68.48778663,92.803,92.704,67.87229253]
[1773615837386,68.48778663,92.779,92.703,33.96]
[1773615837588,33.96,92.804,92.703,33.96]
[1773615837589,68.48778663,92.769,92.703,17.766]
[1773615837884,9.701,92.75,92.703,17.766]
[1773615838089,33.96,92.768,92.703,17.766]
[1773615838090,68.48778663,92.749,92.703,17.766]
[1773615839588,68.48778663,92.749,92.665,33.96]
[1773615839787,68.48778663,92.749,92.66,67.87229253]
[1773615840091,9.702,92.734,92.663,67.87229253]
[1773615840292,68.48778663,92.749,92.663,67.87229253]
[1773615840493,68.48778663,92.749,92.68,7.97310247]
[1773615840693,68.48778663,92.749,92.681,67.87229253]
[1773615840694,9.701,92.748,92.681,67.87229253]
[1773615840886,68.48778663,92.747,92.66,7.97310247]
[1773615841087,68.48778663,92.747,92.66,75.845395]
[1773615841985,68.48778663,92.747,92.676,77.58029253]
[1773615842182,68.48778663,92.747,92.676,67.87229253]
[1773615842387,68.48778663,92.747,92.634,12.57921797]
[1773615842388,68.48778663,92.747,92.654,67.87229253]
[1773615842587,68.48778663,92.722,92.643,33.96]
[1773615842891,68.48778663,92.72,92.64,33.96]
[1773615843088,68.48778663,92.72,92.641,67.87229253]
[1773615843689,68.48778663,92.72,92.64,33.96]
[1773615844283,68.48778663,92.71,92.64,33.96]
[1773615844894,68.48778663,92.755,92.681,67.87229253]
[1773615845094,20.0140167,92.847,92.64,33.96]
[1773615845095,68.48778663,92.779,92.701,67.87229253]
[1773615845391,68.48778663,92.779,92.703,67.87229253]
[1773615845695,9.698,92.777,92.709,9.705]
[1773615846300,9.698,92.777,92.709,77.57729253]
[1773615846889,68.48778663,92.779,92.709,67.87229253]
[1773615846890,9.699,92.767,92.709,67.87229253]
[1773615847394,68.48778663,92.779,92.699,101.83229253]
[1773615847395,102.44778663,92.779,92.699,101.83229253]
[1773615847596,102.44778663,92.779,92.7,101.83229253]
[1773615847794,9.699,92.768,92.701,67.87229253]
[1773615847997,68.48778663,92.802,92.701,67.87229253]
[1773615848194,76.4608891,92.8,92.702,33.96]
[1773615848492,68.48778663,92.798,92.711,67.87229253]
[1773615849792,78.18678663,92.765,92.702,33.96]
[1773615850197,9.703,92.731,92.665,43.669]
[1773615850398,9.703,92.731,92.666,67.87229253]
[1773615851095,78.19078663,92.726,92.665,33.96]
[1773615851495,68.48778663,92.755,92.666,77.58129253]
[1773615852498,68.48778663,92.739,92.666,67.87229253]
[1773615852696,68.48778663,92.739,92.667,33.96]
[1773615853602,9.702,92.736,92.667,33.96]
[1773615853799,68.48778663,92.739,92.64,67.87229253]
[1773615853996,33.96,92.754,92.617,67.87229253]
[1773615853997,68.48778663,92.719,92.617,67.87229253]
[1773615854195,9.706,92.697,92.623,67.87229253]
[1773615854799,68.48778663,92.692,92.623,67.87229253]
[1773615855605,68.48778663,92.692,92.624,33.96]
[1773615855904,68.48778663,92.692,92.624,101.83229253]
[1773615856102,68.48778663,92.692,92.624,33.96]
[1773615857202,68.48778663,92.712,92.625,67.87229253]
[1773615857805,68.48778663,92.712,92.627,67.87229253]
[1773615858406,9.706,92.699,92.627,67.87229253]
[1773615859108,9.706,92.699,92.631,67.87229253]
[1773615859308,78.19378663,92.699,92.631,67.87229253]
[1773615861509,68.48778663,92.699,92.633,67.87229253]
[1773615862106,9.706,92.696,92.633,67.87229253]
[1773615862307,68.48778663,92.699,92.633,67.87229253]
[1773615862710,72.88880497,92.697,92.633,67.87229253]
[1773615863307,72.88880497,92.697,92.628,33.96]
[1773615863707,63.18280497,92.684,92.628,33.96]
[1773615864412,63.18280497,92.684,92.593,67.21446829]
[1773615864603,63.18280497,92.684,92.601,67.21446829]
[1773615864806,63.18280497,92.684,92.617,9.714]
[1773615865112,63.18280497,92.684,92.603,67.21446829]
[1773615865510,63.18280497,92.672,92.604,9.716]
[1773615865714,63.18280497,92.695,92.605,67.21446829]
[1773615866508,9.708,92.681,92.607,9.715]
[1773615866709,72.89080497,92.681,92.607,67.21446829]
[1773615868111,9.709,92.671,92.607,67.21446829]
[1773615868811,72.89180497,92.671,92.603,67.21446829]
[1773615869311,63.18280497,92.671,92.603,67.21446829]
[1773615869519,63.18280497,92.671,92.605,67.21446829]
[1773615869717,72.89080497,92.683,92.613,76.92946829]
[1773615870016,72.89080497,92.683,92.615,67.21446829]
[1773615870214,72.89080497,92.683,92.618,67.21446829]
[1773615870413,9.706,92.695,92.618,67.21446829]
[1773615871220,63.18280497,92.702,92.621,67.21446829]
[1773615871915,9.706,92.699,92.634,76.92746829]
[1773615872917,9.706,92.699,92.62,7.97538316]
[1773615872918,63.18280497,92.726,92.644,67.21446829]
[1773615873215,26.44560059,92.848,92.593,41.78099097]
[1773615873216,63.18280497,92.742,92.646,67.21446829]
[1773615873415,63.18280497,92.742,92.648,67.21446829]
[1773615873716,63.18280497,92.728,92.648,67.21446829]
[1773615873912,63.18280497,92.728,92.65,67.21446829]
[1773615874126,63.18280497,92.719,92.627,67.21446829]
[1773615874311,63.18280497,92.701,92.628,33.98]
[1773615874615,63.18280497,92.701,92.629,67.21446829]
[1773615875516,9.706,92.695,92.63,33.98]
[1773615876313,72.88880497,92.695,92.63,33.98]
[1773615876518,72.88880497,92.695,92.631,33.98]
[1773615876519,63.18280497,92.695,92.631,33.98]
[1773615877314,72.88880497,92.695,92.631,33.98]
[1773615878210,63.18280497,92.695,92.632,76.92746829]
[1773615878415,33.98,92.707,92.632,67.21446829]
[1773615878807,33.98,92.707,92.631,33.98]
[1773615878808,63.18280497,92.769,92.675,67.21446829]
[1773615879014,63.18280497,92.767,92.677,67.21446829]
[1773615879610,7.97538316,92.79,92.676,33.98]
[1773615879611,63.18280497,92.761,92.69,76.92146829]
[1773615880108,63.18280497,92.761,92.691,33.98]
[1773615880315,63.18280497,92.761,92.691,101.19446829]
[1773615880520,72.88180497,92.761,92.691,101.19446829]
[1773615880912,63.18280497,92.761,92.691,101.19446829]
[1773615881214,63.18280497,92.761,92.691,33.98]
[1773615881411,72.88380497,92.751,92.691,33.98]
[1773615883718,9.701,92.751,92.692,67.21446829]
[1773615884015,63.18280497,92.75,92.692,67.21446829]
[1773615884720,33.98,92.761,92.66,7.97538316]
[1773615884721,63.18280497,92.749,92.685,33.98]
[1773615886517,9.702,92.738,92.685,33.98]
[1773615887714,72.88380497,92.749,92.685,33.98]
[1773615887918,72.88380497,92.749,92.686,76.92146829]
[1773615888115,63.18280497,92.749,92.686,67.21446829]
[1773615888618,72.88480497,92.74,92.685,33.98]
[1773615888816,63.18280497,92.754,92.686,67.21446829]
[1773615889018,63.18280497,92.775,92.716,9.704]
[1773615889214,63.18280497,92.775,92.704,67.21446829]
[1773615889616,63.18280497,92.775,92.716,9.704]
[1773615889816,63.18280497,92.775,92.711,33.96]
[1773615890321,63.18280497,92.77,92.711,33.96]
[1773615890519,63.18280497,92.77,92.71,33.96]
[1773615890715,63.18280497,92.77,92.712,76.91946829]
[1773615890915,63.18280497,92.779,92.712,76.91946829]
[1773615891320,63.18280497,92.779,92.707,33.96]
[1773615892023,65.5085254,92.793,92.709,67.15045599]
[1773615892616,9.698,92.771,92.709,101.11045599]
[1773615893822,67.38648635,92.757,92.673,9.42099097]
[1773615894023,67.38648635,92.755,92.674,68.24023884]
[1773615894224,101.34648635,92.779,92.681,68.24023884]
[1773615894420,67.38648635,92.777,92.683,68.24023884]
[1773615894822,67.38648635,92.777,92.682,43.38099097]
[1773615894823,9.7,92.755,92.692,68.24023884]
[1773615895426,67.38648635,92.752,92.692,68.24023884]
[1773615896228,9.702,92.74,92.68,9.708]
[1773615896429,9.702,92.74,92.685,33.96]
[1773615896733,9.699,92.765,92.703,68.24023884]
[1773615897523,77.08548635,92.765,92.703,68.24023884]
[1773615898022,77.08548635,92.765,92.703,35.89820736]
[1773615898619,77.08548635,92.765,92.704,9.705]
[1773615899026,33.96,92.782,92.68,7.97538316]
[1773615899027,67.38648635,92.756,92.681,9.708]
[1773615899330,67.38648635,92.756,92.682,33.96]
[1773615899630,67.38648635,92.746,92.683,9.708]
[1773615899823,67.38648635,92.746,92.682,33.96]
[1773615900126,67.38648635,92.735,92.682,33.96]
[1773615900328,7.97538316,92.8,92.641,33.96]
[1773615900329,67.38648635,92.729,92.641,33.96]
[1773615900526,67.38648635,92.778,92.661,68.24023884]
[1773615900730,9.702,92.738,92.661,68.24023884]
[1773615900932,67.38648635,92.754,92.661,68.24023884]
[1773615901526,67.38648635,92.773,92.691,68.24023884]
[1773615901730,67.38648635,92.793,92.721,68.24023884]
[1773615902033,67.38648635,92.793,92.728,68.24023884]
[1773615902527,67.38648635,92.793,92.73,9.703]
[1773615902528,9.696,92.792,92.73,9.703]
[1773615902727,9.696,92.792,92.729,33.96]
[1773615902927,9.696,92.792,92.731,9.702]
[1773615903131,9.696,92.792,92.732,68.24023884]
[1773615903330,9.695,92.802,92.732,68.24023884]
[1773615904030,9.695,92.802,92.737,68.24023884]
[1773615904332,9.695,92.802,92.737,35.91538435]
[1773615904533,9.696,92.793,92.737,35.91538435]
[1773615905331,67.38648635,92.832,92.737,35.91538435]
[1773615905534,67.38648635,92.826,92.737,35.91538435]
[1773615906530,67.38648635,92.826,92.739,60.18244259]
[1773615906732,67.38648635,92.826,92.583,604.706]
[1773615906733,67.38648635,92.809,92.697,33.96]
[1773615906935,19.385,92.832,92.698,33.96]
[1773615906936,67.38648635,92.807,92.698,33.96]
[1773615907136,9.696,92.797,92.724,9.703]
[1773615907339,67.38648635,92.834,92.73,7.97538316]
[1773615908035,77.08048635,92.81,92.736,9.702]
[1773615908234,77.08048635,92.81,92.737,33.96]
[1773615908938,77.08148635,92.8,92.738,33.96]
[1773615909532,67.38648635,92.8,92.74,10.12776493]
[1773615909743,67.38648635,92.819,92.74,10.12776493]
[1773615910344,9.694,92.816,92.752,10.18767801]
[1773615911145,33.96,92.833,92.738,33.96]
[1773615911146,77.08148635,92.805,92.738,33.96]
[1773615911538,67.38648635,92.826,92.739,10.23344989]
[1773615912043,9.694,92.816,92.739,10.23344989]
[1773615912244,67.38648635,92.816,92.739,10.23344989]
[1773615912442,67.38648635,92.816,92.731,33.94]
[1773615912646,67.38648635,92.807,92.736,9.56007578]
[1773615913440,9.695,92.804,92.737,9.702]
[1773615913642,9.695,92.804,92.736,9.56007578]
[1773615913643,9.695,92.804,92.738,9.78348822]
[1773615914945,9.695,92.804,92.741,9.82126596]
[1773615915147,67.38648635,92.799,92.741,9.82126596]
[1773615915951,67.38648635,92.799,92.742,9.701]
[1773615918645,77.08148635,92.808,92.743,10.06237947]
[1773615920149,77.08148635,92.808,92.737,33.94]
[1773615920150,77.08148635,92.808,92.746,19.92751802]
[1773615920846,77.08148635,92.808,92.746,9.701]
[1773615921251,77.08148635,92.808,92.747,10.27095426]
[1773615921451,77.08148635,92.808,92.751,9.7]
[1773615921748,67.38648635,92.808,92.751,9.7]
[1773615921954,9.693,92.82,92.758,10.23898597]
[1773615923858,65.16013207,92.819,92.764,9.699]
[1773615924049,9.693,92.818,92.764,9.699]
[1773615924450,74.8675893,92.818,92.764,9.699]
[1773615924760,74.8675893,92.818,92.758,10.23898597]
[1773615925850,74.8675893,92.818,92.762,9.93748132]
[1773615926047,65.17546565,92.859,92.771,9.93748132]
[1773615926251,65.17546565,92.859,92.775,9.42099097]
[1773615926452,65.17546565,92.859,92.783,9.697]
[1773615926756,74.9219125,92.848,92.784,9.82458762]
[1773615927155,74.9219125,92.848,92.794,9.696]
[1773615927851,74.9219125,92.848,92.785,9.697]
[1773615928258,66.27729566,92.873,92.791,7.73348705]
[1773615928556,66.27729566,92.873,92.812,7.73348705]
[1773615929059,66.27729566,92.873,92.776,7.73392419]
[1773615929353,66.27729566,92.873,92.781,7.74960217]
[1773615929655,66.27729566,92.873,92.78,7.96236991]
[1773615929656,66.26945667,92.859,92.783,7.74960217]
[1773615930357,66.76376552,92.847,92.786,6.7602252]
[1773615930754,76.45376552,92.847,92.786,6.7602252]
[1773615930954,76.45376552,92.847,92.768,6.759632]
[1773615930955,66.76376552,92.847,92.768,6.759632]
[1773615931854,66.76376552,92.847,92.78,6.75979282]
[1773615932456,66.67602984,92.844,92.78,6.75979282]
[1773615932960,66.67602984,92.853,92.782,6.93306815]
[1773615933357,66.7655072,92.849,92.785,9.697]
[1773615933556,66.7655072,92.878,92.791,6.75411343]
[1773615934762,76.21776234,92.875,92.809,16.91981436]
[1773615934960,76.21776234,92.875,92.81,7.22456788]
[1773615935362,66.52976234,92.875,92.812,9.694]
[1773615936561,9.688,92.874,92.812,9.694]
[1773615936962,76.4567014,92.874,92.812,9.694]
[1773615937857,7.96236991,92.96,92.81,7.22456788]
[1773615937858,66.85601761,92.892,92.813,6.56853499]
[1773615938863,66.85601761,92.892,92.834,9.692]
[1773615939359,66.85601761,92.892,92.811,8.5981653]
[1773615939556,65.84002949,92.88,92.814,9.694]
[1773615940362,65.66545379,92.878,92.814,9.694]
[1773615940756,65.66545379,92.878,92.82,3.3391063]
[1773615941868,65.68418574,92.875,92.82,3.3391063]
[1773615942264,10.55293021,92.894,92.83,3.3391063]
[1773615942465,10.55293021,92.894,92.804,33.92]
[1773615942466,65.60588206,92.937,92.88,3.3391063]
[1773615942661,65.60588206,92.937,92.867,33.92]
[1773615942971,65.60588206,92.937,92.88,3.3391063]
[1773615943161,71.22792462,92.919,92.86,3.3391063]
[1773615943668,71.22792462,92.919,92.86,13.0281063]
[1773615944064,71.22792462,92.939,92.851,33.92]
[1773615944263,70.22015966,92.939,92.851,33.92]
[1773615944464,70.22015966,92.919,92.852,33.92]
[1773615944667,70.22015966,92.899,92.84,3.3391063]
[1773615944971,70.22015966,92.922,92.835,33.92]
[1773615945167,70.22015966,92.922,92.837,1.92042188]
[1773615945370,70.22015966,92.922,92.838,1.92042188]
[1773615945764,70.22015966,92.922,92.84,1.92042188]
[1773615945966,69.23940645,92.944,92.864,1.92521234]
[1773615946672,69.23940645,92.944,92.869,10.55334446]
[1773615946875,69.23940645,92.944,92.87,0.86534446]
[1773615947974,69.23940645,92.944,92.874,0.83835813]
[1773615948568,69.23940645,92.944,92.876,9.687]
[1773615949170,7.94756202,92.97,92.85,7.94756202]
[1773615949171,7.94756202,92.97,92.882,0.57626942]
[1773615949371,69.89764217,92.969,92.882,0.57626942]
[1773615949573,69.89764217,92.969,92.883,9.687]
[1773615949870,69.89764217,92.966,92.884,0.62857229]
[1773615950176,9.678,92.965,92.884,0.62857229]
[1773615950369,69.922387,92.964,92.884,0.62857229]
[1773615950874,7.94756202,92.97,92.839,33.92]
[1773615950875,69.922387,92.949,92.864,0.58504204]
[1773615951369,7.94756202,92.97,92.876,9.687]
[1773615951370,69.4940741,92.947,92.876,9.687]
[1773615952370,69.49604379,92.966,92.889,1.45450367]
[1773615953169,69.49604379,92.966,92.901,9.685]
[1773615953369,69.49604379,92.966,92.891,1.57448727]
[1773615953673,33.9,92.998,92.873,1.92513126]
[1773615953674,69.32072179,92.938,92.873,1.92513126]
[1773615954463,69.32072179,92.938,92.86,33.9]
[1773615954667,69.32072179,92.938,92.814,9.42099097]
[1773615954863,69.46032634,92.919,92.815,1.64858999]
[1773615955166,69.46032634,92.912,92.815,1.64858999]
[1773615955365,69.7791328,92.899,92.802,33.9]
[1773615955565,69.7791328,92.877,92.793,1.01381949]
[1773615955969,69.7791328,92.877,92.732,18.86651571]
[1773615955970,69.7791328,92.865,92.779,1.0164851]
[1773615956972,70.02147428,92.862,92.78,9.697]
[1773615957869,70.02147428,92.862,92.796,9.696]
[1773615958470,79.71047428,92.862,92.782,9.697]
[1773615958871,79.71047428,92.862,92.779,1.0164851]
[1773615959777,79.71047428,92.862,92.794,9.696]
[1773615960577,70.02147428,92.862,92.798,1.93418416]
[1773615960777,69.32489483,92.859,92.752,1.93418416]
[1773615960977,33.9,92.894,92.711,1.93643195]
[1773615960978,69.32489483,92.803,92.711,1.93643195]
[1773615961169,69.17057056,92.835,92.751,2.24508048]
[1773615962068,69.17057056,92.835,92.768,9.699]
[1773615962273,69.17057056,92.835,92.751,2.24508048]
[1773615963774,69.17057056,92.835,92.781,9.697]
[1773615963974,69.17057056,92.835,92.751,2.24508048]
[1773615964380,69.17057056,92.835,92.751,4.89051132]
[1773615964871,69.17057056,92.835,92.765,9.699]
[1773615965076,69.17057056,92.835,92.771,4.8933175]
[1773615965268,33.92,92.857,92.771,4.8933175]
[1773615965269,102.06365623,92.857,92.771,4.8933175]
[1773615965471,68.14365623,92.857,92.791,4.30847713]
[1773615965675,68.14365623,92.857,92.801,9.695]
[1773615966180,68.14365623,92.857,92.74,12.53434703]
[1773615966181,68.14573416,92.881,92.811,4.30560346]
[1773615966775,68.14573416,92.881,92.829,9.692]
[1773615966975,68.14573416,92.909,92.829,9.692]
[1773615967378,68.14573416,92.909,92.84,9.691]
[1773615967785,68.1288702,92.936,92.851,4.34037843]
[1773615968081,68.1288702,92.936,92.879,9.687]
[1773615968277,68.1288702,92.936,92.851,4.34037843]
[1773615968978,68.1288702,92.936,92.867,9.688]
[1773615969787,68.1288702,92.936,92.879,9.687]
[1773615970577,10.00784493,93.035,92.851,4.34037843]
[1773615970578,68.65670066,93.047,92.958,3.31841422]
[1773615970880,68.65670066,93.047,92.961,3.3316157]
[1773615971078,68.65670066,93.047,92.981,3.25978426]
[1773615971273,68.69261638,93.075,92.981,3.25978426]
[1773615971475,17.88631523,93.2,93.001,3.25978426]
[1773615971476,0.00027247,93.063,93.001,3.25978426]
[1773615971679,0.00027247,93.063,93.021,3.25978426]
[1773615971880,0.00027247,93.063,93.023,9.672]
[1773615972080,0.00027247,93.063,93.024,3.27201906]
[1773615972280,7.94756202,93.08,92.981,6.56653728]
[1773615972481,67.04535727,93.073,92.966,33.9]
[1773615972686,67.04535727,93.073,92.967,6.56653728]
[1773615972879,67.04535727,93.073,92.848,18.6819452]
[1773615972880,67.04535727,93.034,92.943,6.56653728]
[1773615973378,69.2718792,93.032,92.943,6.56653728]
[1773615973979,69.2718792,93.025,92.943,6.56653728]
[1773615974378,70.13697484,93.048,92.97,7.94756202]
[1773615974582,70.13697484,93.079,92.991,0.44938724]
[1773615974787,70.13697484,93.079,92.993,0.44938724]
[1773615974980,70.13697484,93.079,92.995,0.44827488]
[1773615975379,70.13697484,93.079,92.996,33.9]
[1773615975585,70.13697484,93.079,92.997,0.51557822]
[1773615975780,70.10332317,93.069,92.974,0.51557822]
[1773615976483,70.34321222,93.06,92.974,0.51557822]
[1773615977185,9.668,93.059,92.974,0.51557822]
[1773615977382,71.22751374,93.058,92.95,7.92257532]